[Event "46th GRE-chT Premier 2018"]
[Site "Rio Achaia"]
[Date "2018.07.11"]
[Round "3"]
[White "Loutragotis, Paraskevas Pantelei"]
[Black "Stefan, Victor"]
[Result "1/2-1/2"]
[ECO "B19"]
[WhiteElo "1980"]
[BlackElo "2102"]
[Annotator "NA"]
[PlyCount "234"]
[EventDate "2018.07.10"]
[EventType "team-tourn"]
[EventCountry "GRE"]
[SourceTitle "playchess.com"]
[Source "ChessBase"]
[SourceQuality "1"]
[TimeControl "40/5400+30:1800+30"]

1. e4 {[%emt 0:06:27]} c6 {[%emt 0:00:00]} 2. d4 {[%emt 0:00:35]} d5 {[%emt 0:00:00]} 3. Nd2 {[%emt 0:00:36]} dxe4 {[%emt 0:00:00]} 4. Nxe4 {[%emt 0:00:04]} Bf5 {[%emt 0:00:54]} 5. Ng3 {[%emt 0:00:04]} Bg6 {[%emt 0:00:06]} 6. h4 {[%emt 0:00:05]} h6 {[%emt 0:00:06]} 7. Nf3 {[%emt 0:00:03]} Nd7 {[%emt 0:00:09]} 8. h5 {[%emt 0:00:02]} Bh7 {[%emt 0:00:06]} 9. Bd3 {[%emt 0:00:03]} Bxd3 {[%emt 0:00:06]} 10. Qxd3 {[%emt 0:00:03]} e6 {[%emt 0:00:19]} 11. Bd2 {[%emt 0:00:04]} Ngf6 {[%emt 0:00:05]} 12. O-O-O {[%emt 0:00:04]} Be7 {[%emt 0:00:08]} 13. c4 {[%emt 0:01:52]} O-O {[%emt 0:02:34]} 14. Ne4 {[%emt 0:00:08]} b5 {[%emt 0:02:41]} 15. c5 {[%emt 0:02:24]} Nxc5 {[%emt 0:36:26]} 16. Nxc5 {[%emt 0:01:35]} Bxc5 {[%emt 0:00:15]} 17. Bxh6 {[%emt 0:00:42]} gxh6 {[%emt 0:00:34]} 18. dxc5 {[%emt 0:00:15]} Qxd3 {[%emt 0:00:34]} 19. Rxd3 {[%emt 0:00:02]} Rfd8 {[%emt 0:01:37]} 20. Rhd1 {[%emt 0:01:21]} Rd5 {[%emt 0:04:12]} 21. Rxd5 {[%emt 0:00:09]} cxd5 {[%emt 0:00:51]} 22. Nd4 {[%emt 0:03:56]} Rc8 {[%emt 0:00:55]} 23. b4 {[%emt 0:00:06]} a6 {[%emt 0:04:00]} 24. Kd2 {[%emt 0:04:46]} Kf8 {[%emt 0:02:11]} 25. f3 {[%emt 0:02:38]} Ke7 {[%emt 0:06:13]} 26. g4 {[%emt 0:00:10]} Kd7 {[%emt 0:07:04]} 27. Re1 {[%emt 0:12:24]} Rg8 {[%emt 0:08:18]} 28. a4 {[%emt 0:02:33]} bxa4 {[%emt 0:09:36]} 29. Ra1 {[%emt 0:00:29]} Kc7 {[%emt 0:00:27]} 30. Rxa4 {[%emt 0:00:09]} Kb7 {[%emt 0:00:17]} 31. Kc3 {[%emt 0:07:12]} Rc8 {[%emt 0:03:17]} 32. Ra1 {[%emt 0:01:42]} Nd7 {[%emt 0:07:12]} 33. Re1 {[%emt 0:03:18]} a5 {[%emt 0:02:08]} 34. Kb3 {[%emt 0:00:13]} Kc7 {[%emt 0:02:10]} 35. c6 {[%emt 0:05:42]} Nb6 {[%emt 0:00:41]} 36. Nb5+ {[%emt 0:01:08]} Kd8 {[%emt 0:00:29]} 37. c7+ {[%emt 0:00:22]} Kd7 {[%emt 0:00:16]} 38. bxa5 {[%emt 0:00:23]} Nc4 {[%emt 0:00:19]} 39. Kb4 {[%emt 0:01:42]} f6 {[%emt 0:01:41]} 40. f4 {[%emt 0:00:00]} Rg8 {[%emt 0:00:00]} 41. Rg1 {[%emt 0:02:27]} Ne3 {[%emt 0:15:50]} 42. Kc5 {[%emt 0:01:25]} e5 {[%emt 0:07:54]} 43. fxe5 {[%emt 0:00:41]} fxe5 {[%emt 0:00:03]} 44. g5 {[%emt 0:01:21]} hxg5 {[%emt 0:00:37]} 45. h6 {[%emt 0:00:05]} g4 {[%emt 0:00:11]} 46. h7 {[%emt 0:04:39]} Rh8 {[%emt 0:00:42]} 47. Kb6 {[%emt 0:07:17]} Nc4+ {[%emt 0:05:05]} 48. Ka7 {[%emt 0:00:29]} Kc6 {[%emt 0:02:12]} 49. Ka6 {[%emt 0:05:51]} Ra8+ {[%emt 0:02:26]} 50. Na7+ {[%emt 0:00:05]} Kxc7 {[%emt 0:00:17]} 51. Rxg4 {[%emt 0:00:11]} Rh8 {[%emt 0:00:28]} 52. Rg7+ {[%emt 0:02:39]} Kd6 {[%emt 0:00:02]} 53. Kb5 {[%emt 0:04:27]} Nxa5 {[%emt 0:00:17]} 54. Kxa5 {[%emt 0:00:06]} Ke6 {[%emt 0:00:16]} 55. Nc6 {[%emt 0:00:30]} Kf6 {[%emt 0:00:56]} 56. Rd7 {[%emt 0:00:29]} e4 {[%emt 0:00:44]} 57. Kb4 {[%emt 0:00:39]} Kg6 {[%emt 0:00:38]} 58. Ne5+ {[%emt 0:00:04]} Kf6 {[%emt 0:00:17]} 59. Ng4+ {[%emt 0:00:13]} Kg6 {[%emt 0:00:44]} 60. Rxd5 {[%emt 0:00:48]} Rxh7 {[%emt 0:00:39]} 61. Kc4 {[%emt 0:00:50]} Ra7 {[%emt 0:00:30]} 62. Ne5+ {[%emt 0:00:04]} Kf6 {[%emt 0:00:28]} 63. Kd4 {[%emt 0:00:26]} Ra4+ {[%emt 0:00:26]} 64. Ke3 {[%emt 0:00:12]} Ke6 {[%emt 0:00:36]} 65. Rb5 {[%emt 0:00:06]} Ra3+ {[%emt 0:00:35]} 66. Kxe4 {[%emt 0:00:02]} Ra4+ {[%emt 0:00:12]} 67. Ke3 {[%emt 0:00:04]} Kf6 {[%emt 0:00:33]} 68. Nf3 {[%emt 0:00:07]} Ra3+ {[%emt 0:00:38]} 69. Ke4 {[%emt 0:00:31]} Ra4+ {[%emt 0:00:33]} 70. Nd4 {[%emt 0:00:03]} Kg6 {[%emt 0:00:25]} 71. Rd5 {[%emt 0:00:27]} Kf6 {[%emt 0:00:23]} 72. Rf5+ {[%emt 0:00:49]} Kg6 {[%emt 0:00:12]} 73. Rf2 {[%emt 0:00:08]} Kg5 {[%emt 0:00:44]} 74. Kd5 {[%emt 0:00:27]} Ra5+ {[%emt 0:00:23]} 75. Kd6 {[%emt 0:00:04]} Ra6+ {[%emt 0:00:14]} 76. Nc6 {[%emt 0:00:03]} Kg4 {[%emt 0:00:15]} 77. Rf6 {[%emt 0:00:14]} Kg5 {[%emt 0:00:24]} 78. Ke7 {[%emt 0:00:02]} Rb6 {[%emt 0:01:11]} 79. Kf7 {[%emt 0:00:04]} Rb7+ {[%emt 0:00:35]} 80. Ne7 {[%emt 0:00:02]} Ra7 {[%emt 0:00:20]} 81. Rf1 {[%emt 0:00:13]} Kg4 {[%emt 0:00:21]} 82. Kf6 {[%emt 0:00:03]} Kg3 {[%emt 0:00:36]} 83. Nd5 {[%emt 0:00:08]} Ra8 {[%emt 0:00:25]} 84. Ke5 {[%emt 0:00:10]} Re8+ {[%emt 0:00:17]} 85. Kd4 {[%emt 0:00:08]} Rd8 {[%emt 0:00:58]} 86. Ke4 {[%emt 0:00:33]} Re8+ {[%emt 0:00:15]} 87. Kf5 {[%emt 0:00:05]} Kg2 {[%emt 0:00:49]} 88. Rf4 {[%emt 0:00:05]} Rf8+ {[%emt 0:00:24]} 89. Nf6 {[%emt 0:00:05]} Kg3 {[%emt 0:00:14]} 90. Kg5 {[%emt 0:00:15]} Ra8 {[%emt 0:01:14]} 91. Ne4+ {[%emt 0:00:04]} Kg2 {[%emt 0:00:22]} 92. Rf2+ {[%emt 0:00:01]} Kg1 {[%emt 0:00:11]} 93. Rb2 {[%emt 0:00:07]} Rg8+ {[%emt 0:00:45]} 94. Kf4 {[%emt 0:00:07]} Rf8+ {[%emt 0:00:43]} 95. Kg4 {[%emt 0:00:09]} Rg8+ {[%emt 0:00:19]} 96. Kf3 {[%emt 0:00:16]} Rf8+ {[%emt 0:00:16]} 97. Ke3 {[%emt 0:00:03]} Re8 {[%emt 0:00:58]} 98. Re2 {[%emt 0:00:12]} Kf1 {[%emt 0:00:28]} 99. Rf2+ {[%emt 0:01:08]} Kg1 {[%emt 0:00:15]} 100. Rf4 {[%emt 0:00:09]} Kg2 {[%emt 0:00:23]} 101. Rg4+ {[%emt 0:00:01]} Kf1 {[%emt 0:00:38]} 102. Kf3 {[%emt 0:00:07]} Rf8+ {[%emt 0:00:16]} 103. Ke3 {[%emt 0:00:06]} Re8 {[%emt 0:00:02]} 104. Rf4+ {[%emt 0:00:17]} Kg2 {[%emt 0:00:13]} 105. Ke2 {[%emt 0:00:07]} Re7 {[%emt 0:01:13]} 106. Rg4+ {[%emt 0:00:04]} Kh3 {[%emt 0:00:21]} 107. Rf4 {[%emt 0:00:16]} Kg2 {[%emt 0:00:26]} 108. Ke3 {[%emt 0:00:09]} Re8 {[%emt 0:00:14]} 109. Rg4+ {[%emt 0:00:02]} Kf1 {[%emt 0:00:27]} 110. Rg6 {[%emt 0:00:01]} Re7 {[%emt 0:00:56]} 111. Kf3 {[%emt 0:00:03]} Rf7+ {[%emt 0:00:18]} 112. Nf6 {[%emt 0:00:02]} Ke1 {[%emt 0:00:45]} 113. Ke3 {[%emt 0:00:01]} Kd1 {[%emt 0:00:56]} 114. Ne4 {[%emt 0:00:04]} Kc2 {[%emt 0:00:23]} 115. Rc6+ {[%emt 0:00:05]} Kb2 {[%emt 0:00:20]} 116. Rb6+ {[%emt 0:00:03]} Kc2 {[%emt 0:00:10]} 117. Rc6+ {[%emt 0:00:08]} Kb2 {[%emt 0:00:05]} 1/2-1/2

[Event "46th GRE-chT Premier 2018"]
[Site "Rio Achaia"]
[Date "2018.07.11"]
[Round "3"]
[White "Boviatsis, Charalampos"]
[Black "Gkonelas, Nikolaos"]
[Result "1-0"]
[ECO "C60"]
[WhiteElo "1979"]
[BlackElo "1917"]
[Annotator "NA"]
[PlyCount "105"]
[EventDate "2018.07.10"]
[EventType "team-tourn"]
[EventCountry "GRE"]
[SourceTitle "playchess.com"]
[Source "ChessBase"]
[SourceQuality "1"]
[TimeControl "40/5400+30:1800+30"]

1. e4 {[%emt 0:00:00]} e5 {[%emt 0:00:00]} 2. Nf3 {[%emt 0:00:00]} Nc6 {[%emt 0:00:00]} 3. Bb5 {[%emt 0:00:00]} Nge7 {[%emt 0:00:00]} 4. O-O {[%emt 0:00:40]} g6 {[%emt 0:00:05]} 5. d4 {[%emt 0:01:09]} exd4 {[%emt 0:00:25]} 6. Nxd4 {[%emt 0:00:38]} Bg7 {[%emt 0:00:07]} 7. Nxc6 {[%emt 0:05:46]} bxc6 {[%emt 0:00:26]} 8. Bd3 {[%emt 0:00:48]} O-O {[%emt 0:02:46]} 9. c3 {[%emt 0:06:27]} d6 {[%emt 0:02:09]} 10. Re1 {[%emt 0:04:23]} Be6 {[%emt 0:04:38]} 11. Bg5 {[%emt 0:02:47]} Qd7 {[%emt 0:04:45]} 12. Nd2 {[%emt 0:02:39]} f6 {[%emt 0:05:54]} 13. Bh4 {[%emt 0:02:32]} Rfe8 {[%emt 0:09:43]} 14. Qc2 {[%emt 0:03:22]} g5 {[%emt 0:02:50]} 15. Bg3 {[%emt 0:00:26]} Ng6 {[%emt 0:01:45]} 16. Rad1 {[%emt 0:07:29]} Ne5 {[%emt 0:05:41]} 17. Be2 {[%emt 0:07:07]} Bh6 {[%emt 0:03:03]} 18. Nb3 {[%emt 0:02:27]} Qe7 {[%emt 0:12:00]} 19. Nd4 {[%emt 0:02:06]} Bd7 {[%emt 0:00:11]} 20. Bh5 {[%emt 0:01:34]} Reb8 {[%emt 0:05:54]} 21. Nf5 {[%emt 0:04:01]} Bxf5 {[%emt 0:00:18]} 22. exf5 {[%emt 0:00:03]} Rb6 {[%emt 0:09:49]} 23. b3 {[%emt 0:10:02]} a5 {[%emt 0:02:37]} 24. Re3 {[%emt 0:05:08]} Qf8 {[%emt 0:01:34]} 25. c4 {[%emt 0:01:26]} c5 {[%emt 0:02:30]} 26. Rde1 {[%emt 0:06:49]} a4 {[%emt 0:01:42]} 27. Bf3 {[%emt 0:03:08]} axb3 {[%emt 0:03:37]} 28. Bd5+ {[%emt 0:01:08]} Kh8 {[%emt 0:00:46]} 29. axb3 {[%emt 0:02:12]} c6 {[%emt 0:01:55]} 30. Be6 {[%emt 0:00:54]} Rba6 {[%emt 0:01:03]} 31. Qc3 {[%emt 0:01:45]} Qb8 {[%emt 0:03:48]} 32. Bxe5 {[%emt 0:05:50]} fxe5 {[%emt 0:04:04]} 33. g4 {[%emt 0:01:04]} Bg7 {[%emt 0:04:07]} 34. Kg2 {[%emt 0:04:14]} Qb4 {[%emt 0:02:07]} 35. Qd3 {[%emt 0:00:58]} Rd8 {[%emt 0:01:01]} 36. h4 {[%emt 0:02:37]} Bf6 {[%emt 0:00:43]} 37. hxg5 {[%emt 0:00:56]} Bxg5 {[%emt 0:00:04]} 38. Rh1 {[%emt 0:01:27]} Ra7 {[%emt 0:03:47]} 39. Reh3 {[%emt 0:01:00]} Qb7 {[%emt 0:00:34]} 40. f6 {[%emt 0:00:00]} Bxf6 {[%emt 0:00:00]} 41. Qg6 {[%emt 0:02:14]} Rf8 {[%emt 0:12:32]} 42. Bg8 {[%emt 0:00:43]} Bh4 {[%emt 0:00:47]} 43. Rxh4 {[%emt 0:02:24]} Rxf2+ {[%emt 0:00:31]} 44. Kxf2 {[%emt 0:00:39]} Ra2+ {[%emt 0:00:07]} 45. Ke3 {[%emt 0:00:10]} Qxb3+ {[%emt 0:01:27]} 46. Qd3 {[%emt 0:00:23]} Qxd3+ {[%emt 0:00:41]} 47. Kxd3 {[%emt 0:00:03]} Kxg8 {[%emt 0:00:19]} 48. Rxh7 {[%emt 0:00:35]} d5 {[%emt 0:01:51]} 49. Rc7 {[%emt 0:00:34]} e4+ {[%emt 0:00:47]} 50. Ke3 {[%emt 0:02:43]} Ra3+ {[%emt 0:00:46]} 51. Kf4 {[%emt 0:02:10]} Rf3+ {[%emt 0:00:58]} 52. Kg5 {[%emt 0:00:02]} d4 {[%emt 0:01:51]} 53. Kg6 {[%emt 0:00:18]} 1-0

[Event "46th GRE-chT Premier 2018"]
[Site "Rio Achaia"]
[Date "2018.07.11"]
[Round "3"]
[White "Fragkou, Eleni"]
[Black "Ivanova, Simoneta"]
[Result "0-1"]
[ECO "B07"]
[WhiteElo "1979"]
[BlackElo "2091"]
[Annotator "NA"]
[PlyCount "46"]
[EventDate "2018.07.10"]
[EventType "team-tourn"]
[EventCountry "GRE"]
[SourceTitle "playchess.com"]
[Source "ChessBase"]
[SourceQuality "1"]
[TimeControl "40/5400+30:1800+30"]

1. e4 {[%emt 0:03:32]} d6 {[%emt 0:00:00]} 2. d4 {[%emt 0:00:07]} Nf6 {[%emt 0:00:00]} 3. Nc3 {[%emt 0:00:07]} Nbd7 {[%emt 0:00:00]} 4. f4 {[%emt 0:00:09]} e5 {[%emt 0:00:01]} 5. Nf3 {[%emt 0:00:13]} exd4 {[%emt 0:00:05]} 6. Qxd4 {[%emt 0:00:09]} c6 {[%emt 0:00:58]} 7. Be3 {[%emt 0:00:37]} d5 {[%emt 0:05:34]} 8. exd5 {[%emt 0:01:00]} Bc5 {[%emt 0:04:53]} 9. Qd3 {[%emt 0:00:43]} O-O {[%emt 0:17:24]} 10. O-O-O {[%emt 0:02:44]} Qb6 {[%emt 0:07:50]} 11. Nd4 {[%emt 0:30:55]} Nxd5 {[%emt 0:04:51]} 12. Nxd5 {[%emt 0:03:16]} cxd5 {[%emt 0:00:09]} 13. g4 {[%emt 0:04:15]} Nf6 {[%emt 0:04:37]} 14. h3 {[%emt 0:00:25]} Ne4 {[%emt 0:04:33]} 15. Bg2 {[%emt 0:02:48]} Bd7 {[%emt 0:01:35]} 16. Rhe1 {[%emt 0:01:36]} Rfe8 {[%emt 0:03:04]} 17. Bg1 {[%emt 0:29:18]} Qc7 {[%emt 0:10:57]} 18. Rf1 {[%emt 0:06:35]} Rac8 {[%emt 0:02:37]} 19. Kb1 {[%emt 0:02:31]} a6 {[%emt 0:02:12]} 20. Rde1 {[%emt 0:02:57]} Bxd4 {[%emt 0:03:50]} 21. Bxe4 {[%emt 0:02:30]} dxe4 {[%emt 0:02:12]} 22. Qxd4 {[%emt 0:00:06]} Qxc2+ {[%emt 0:00:23]} 23. Ka1 {[%emt 0:00:05]} Bb5 {[%emt 0:00:36]} 0-1

[Event "46th GRE-chT Premier 2018"]
[Site "Rio Achaia"]
[Date "2018.07.11"]
[Round "3"]
[White "Sourgkounis, Angelos"]
[Black "Papadopoulos, Panayotis"]
[Result "0-1"]
[ECO "A05"]
[WhiteElo "1976"]
[BlackElo "2189"]
[Annotator "NA"]
[PlyCount "124"]
[EventDate "2018.07.10"]
[EventType "team-tourn"]
[EventCountry "GRE"]
[SourceTitle "playchess.com"]
[Source "ChessBase"]
[SourceQuality "1"]
[TimeControl "40/5400+30:1800+30"]

1. Nf3 {[%emt 0:00:00]} Nf6 {[%emt 0:02:14]} 2. c4 {[%emt 0:00:00]} d6 {[%emt 0:00:10]} 3. Nc3 {[%emt 0:00:04]} e5 {[%emt 0:00:09]} 4. d3 {[%emt 0:01:03]} Be7 {[%emt 0:00:06]} 5. g3 {[%emt 0:00:26]} O-O {[%emt 0:00:07]} 6. Bg2 {[%emt 0:00:06]} Nbd7 {[%emt 0:00:26]} 7. O-O {[%emt 0:00:54]} c6 {[%emt 0:00:16]} 8. a3 {[%emt 0:13:45]} Re8 {[%emt 0:05:39]} 9. b4 {[%emt 0:02:43]} d5 {[%emt 0:07:31]} 10. e4 {[%emt 0:09:59]} dxc4 {[%emt 0:10:08]} 11. dxc4 {[%emt 0:00:08]} Qc7 {[%emt 0:00:05]} 12. Qe2 {[%emt 0:06:18]} a5 {[%emt 0:01:42]} 13. Rb1 {[%emt 0:01:05]} axb4 {[%emt 0:01:59]} 14. axb4 {[%emt 0:00:03]} Nf8 {[%emt 0:00:06]} 15. Rd1 {[%emt 0:09:07]} Bg4 {[%emt 0:00:46]} 16. Be3 {[%emt 0:03:51]} Ne6 {[%emt 0:02:38]} 17. Qb2 {[%emt 0:11:44]} Bxf3 {[%emt 0:02:51]} 18. Bxf3 {[%emt 0:00:06]} Red8 {[%emt 0:00:14]} 19. c5 {[%emt 0:06:50]} h5 {[%emt 0:12:03]} 20. Ra1 {[%emt 0:08:54]} Rxa1 {[%emt 0:03:15]} 21. Qxa1 {[%emt 0:01:26]} Ng4 {[%emt 0:00:55]} 22. Qc1 {[%emt 0:16:19]} Nxe3 {[%emt 0:04:18]} 23. Qxe3 {[%emt 0:01:31]} Bg5 {[%emt 0:01:19]} 24. Qe1 {[%emt 0:00:27]} g6 {[%emt 0:00:19]} 25. Bg2 {[%emt 0:02:10]} Nd4 {[%emt 0:03:08]} 26. Ne2 {[%emt 0:02:28]} Nc2 {[%emt 0:09:54]} 27. Rxd8+ {[%emt 0:00:09]} Qxd8 {[%emt 0:00:07]} 28. Qc3 {[%emt 0:01:11]} Qd1+ {[%emt 0:00:15]} 29. Bf1 {[%emt 0:00:03]} Ne1 {[%emt 0:03:31]} 30. h4 {[%emt 0:01:26]} Bd2 {[%emt 0:00:23]} 31. Qc4 {[%emt 0:00:41]} Nf3+ {[%emt 0:05:35]} 32. Kg2 {[%emt 0:00:06]} Nh2 {[%emt 0:00:07]} 33. Ng1 {[%emt 0:00:55]} Nxf1 {[%emt 0:00:51]} 34. b5 {[%emt 0:00:30]} Nxg3 {[%emt 0:05:13]} 35. fxg3 {[%emt 0:00:28]} Qc1 {[%emt 0:02:45]} 36. Qxc1 {[%emt 0:00:28]} Bxc1 {[%emt 0:00:07]} 37. bxc6 {[%emt 0:00:02]} bxc6 {[%emt 0:00:08]} 38. Nf3 {[%emt 0:00:35]} f6 {[%emt 0:00:13]} 39. Ne1 {[%emt 0:00:08]} Kf7 {[%emt 0:04:40]} 40. Nd3 {[%emt 0:00:00]} Bd2 {[%emt 0:00:00]} 41. Kf3 {[%emt 0:07:04]} Ke6 {[%emt 0:01:31]} 42. Ke2 {[%emt 0:02:31]} Bc3 {[%emt 0:00:42]} 43. Nc1 {[%emt 0:08:28]} Kd7 {[%emt 0:01:02]} 44. Kf3 {[%emt 0:01:46]} Kc7 {[%emt 0:02:36]} 45. Nd3 {[%emt 0:08:21]} Kb7 {[%emt 0:02:55]} 46. g4 {[%emt 0:00:33]} Ka6 {[%emt 0:02:30]} 47. gxh5 {[%emt 0:02:23]} gxh5 {[%emt 0:00:06]} 48. Ke2 {[%emt 0:00:41]} Bd4 {[%emt 0:05:45]} 49. Kf3 {[%emt 0:01:44]} Kb5 {[%emt 0:00:29]} 50. Nc1 {[%emt 0:00:05]} Bc3 {[%emt 0:01:23]} 51. Kf2 {[%emt 0:01:10]} Bd4+ {[%emt 0:06:43]} 52. Kf3 {[%emt 0:00:30]} Bxc5 {[%emt 0:03:17]} 53. Ne2 {[%emt 0:00:18]} Bb4 {[%emt 0:02:34]} 54. Kf2 {[%emt 0:00:33]} c5 {[%emt 0:00:05]} 55. Ng3 {[%emt 0:00:05]} c4 {[%emt 0:00:11]} 56. Ke2 {[%emt 0:01:28]} Ka4 {[%emt 0:02:11]} 57. Nxh5 {[%emt 0:01:57]} c3 {[%emt 0:03:22]} 58. Kd3 {[%emt 0:00:30]} Kb3 {[%emt 0:00:07]} 59. Ng3 {[%emt 0:00:05]} c2 {[%emt 0:00:55]} 60. Ne2 {[%emt 0:00:26]} Bf8 {[%emt 0:02:33]} 61. Ke3 {[%emt 0:01:03]} Bh6+ {[%emt 0:00:14]} 62. Kf3 {[%emt 0:00:04]} Kc4 {[%emt 0:00:30]} 0-1

[Event "46th GRE-chT Premier 2018"]
[Site "Rio Achaia"]
[Date "2018.07.11"]
[Round "3"]
[White "Moshovakis, Aggelos"]
[Black "Tsaknakis, Zisis"]
[Result "0-1"]
[ECO "B51"]
[WhiteElo "1964"]
[BlackElo "2170"]
[Annotator "NA"]
[PlyCount "132"]
[EventDate "2018.07.10"]
[EventType "team-tourn"]
[EventCountry "GRE"]
[SourceTitle "playchess.com"]
[Source "ChessBase"]
[SourceQuality "1"]
[TimeControl "40/5400+30:1800+30"]

1. e4 {[%emt 0:00:00]} c5 {[%emt 0:00:02]} 2. Nf3 {[%emt 0:00:00]} d6 {[%emt 0:00:05]} 3. Bb5+ {[%emt 0:00:00]} Nd7 {[%emt 0:00:06]} 4. c3 {[%emt 0:00:26]} Ngf6 {[%emt 0:00:36]} 5. Qe2 {[%emt 0:00:31]} a6 {[%emt 0:00:12]} 6. Ba4 {[%emt 0:00:09]} b5 {[%emt 0:00:38]} 7. Bc2 {[%emt 0:00:10]} Bb7 {[%emt 0:00:59]} 8. O-O {[%emt 0:00:55]} e6 {[%emt 0:02:58]} 9. d4 {[%emt 0:00:44]} Be7 {[%emt 0:00:15]} 10. Bf4 {[%emt 0:03:04]} Qc7 {[%emt 0:05:50]} 11. Bd3 {[%emt 0:01:40]} e5 {[%emt 0:03:50]} 12. Bg5 {[%emt 0:06:39]} O-O {[%emt 0:01:42]} 13. a4 {[%emt 0:04:52]} h6 {[%emt 0:12:27]} 14. Bh4 {[%emt 0:00:38]} exd4 {[%emt 0:07:20]} 15. cxd4 {[%emt 0:00:08]} c4 {[%emt 0:01:06]} 16. Bc2 {[%emt 0:00:07]} Rfe8 {[%emt 0:00:36]} 17. axb5 {[%emt 0:04:24]} Nxe4 {[%emt 0:12:32]} 18. Bxe7 {[%emt 0:04:35]} Rxe7 {[%emt 0:01:15]} 19. bxa6 {[%emt 0:00:26]} Ndf6 {[%emt 0:01:46]} 20. Re1 {[%emt 0:08:41]} Re6 {[%emt 0:06:12]} 21. Qd1 {[%emt 0:12:00]} Rxa6 {[%emt 0:14:17]} 22. Rxa6 {[%emt 0:00:38]} Bxa6 {[%emt 0:00:05]} 23. Nbd2 {[%emt 0:09:35]} Nxd2 {[%emt 0:11:14]} 24. Qxd2 {[%emt 0:01:35]} Rxe1+ {[%emt 0:02:07]} 25. Qxe1 {[%emt 0:00:31]} Bb7 {[%emt 0:00:55]} 26. Qe3 {[%emt 0:03:53]} Qa5 {[%emt 0:03:58]} 27. Qe1 {[%emt 0:02:22]} Qa2 {[%emt 0:03:25]} 28. Qb1 {[%emt 0:01:46]} Qa7 {[%emt 0:00:32]} 29. Qd1 {[%emt 0:02:17]} g6 {[%emt 0:03:23]} 30. Ne1 {[%emt 0:03:28]} Qb6 {[%emt 0:01:28]} 31. b3 {[%emt 0:00:49]} cxb3 {[%emt 0:01:12]} 32. Bxb3 {[%emt 0:00:07]} Qb4 {[%emt 0:00:42]} 33. f3 {[%emt 0:03:59]} Kg7 {[%emt 0:01:22]} 34. Kf2 {[%emt 0:00:48]} Ba6 {[%emt 0:00:18]} 35. Ke3 {[%emt 0:09:14]} Qc3+ {[%emt 0:00:50]} 36. Nd3 {[%emt 0:00:29]} h5 {[%emt 0:01:02]} 37. Ba2 {[%emt 0:00:34]} Bxd3 {[%emt 0:00:19]} 38. Qxd3 {[%emt 0:00:08]} Qe1+ {[%emt 0:00:11]} 39. Qe2 {[%emt 0:00:23]} Qg1+ {[%emt 0:00:23]} 40. Kd3 {[%emt 0:00:00]} Qxh2 {[%emt 0:00:00]} 41. Qe7 {[%emt 0:01:21]} d5 {[%emt 0:01:24]} 42. Qe2 {[%emt 0:00:37]} h4 {[%emt 0:05:01]} 43. Kd2 {[%emt 0:04:47]} Qg1 {[%emt 0:01:11]} 44. Kc3 {[%emt 0:00:41]} Qa1+ {[%emt 0:02:16]} 45. Kd3 {[%emt 0:01:17]} Qc1 {[%emt 0:01:50]} 46. Qd2 {[%emt 0:08:50]} Qf1+ {[%emt 0:01:19]} 47. Kc3 {[%emt 0:01:29]} h3 {[%emt 0:00:39]} 48. gxh3 {[%emt 0:00:13]} Qxf3+ {[%emt 0:00:09]} 49. Qd3 {[%emt 0:00:10]} Ne4+ {[%emt 0:01:14]} 50. Kc2 {[%emt 0:00:03]} Qg2+ {[%emt 0:00:27]} 51. Kb1 {[%emt 0:00:52]} Nf6 {[%emt 0:09:41]} 52. Bb3 {[%emt 0:01:26]} Qf2 {[%emt 0:01:34]} 53. Kc1 {[%emt 0:01:20]} Qe1+ {[%emt 0:02:32]} 54. Kc2 {[%emt 0:00:27]} Kf8 {[%emt 0:01:09]} 55. Qc3 {[%emt 0:08:11]} Qf2+ {[%emt 0:01:16]} 56. Kb1 {[%emt 0:00:49]} Kg7 {[%emt 0:00:18]} 57. Qd3 {[%emt 0:01:07]} Kh6 {[%emt 0:00:30]} 58. Kc1 {[%emt 0:01:22]} Kg5 {[%emt 0:00:35]} 59. Qc3 {[%emt 0:02:01]} Qf4+ {[%emt 0:02:13]} 60. Kb1 {[%emt 0:01:32]} Kh4 {[%emt 0:01:24]} 61. Ba2 {[%emt 0:01:02]} Qf1+ {[%emt 0:00:40]} 62. Kb2 {[%emt 0:00:29]} Qg2+ {[%emt 0:00:32]} 63. Kb1 {[%emt 0:00:08]} Qxh3 {[%emt 0:01:36]} 64. Qe1+ {[%emt 0:00:19]} Kg5 {[%emt 0:00:22]} 65. Kc1 {[%emt 0:00:48]} Qa3+ {[%emt 0:00:15]} 66. Kb1 {[%emt 0:00:05]} Qd3+ {[%emt 0:00:06]} 0-1

[Event "46th GRE-chT Premier 2018"]
[Site "Rio Achaia"]
[Date "2018.07.11"]
[Round "3"]
[White "Petraki, Maria"]
[Black "Makropoulou, Marina"]
[Result "1-0"]
[ECO "B85"]
[WhiteElo "1962"]
[BlackElo "2135"]
[Annotator "NA"]
[PlyCount "91"]
[EventDate "2018.07.10"]
[EventType "team-tourn"]
[EventCountry "GRE"]
[SourceTitle "playchess.com"]
[Source "ChessBase"]
[SourceQuality "1"]
[TimeControl "40/5400+30:1800+30"]

1. e4 {[%emt 0:00:26]} c5 {[%emt 0:00:00]} 2. Nf3 {[%emt 0:00:36]} e6 {[%emt 0:01:38]} 3. d4 {[%emt 0:01:03]} cxd4 {[%emt 0:00:05]} 4. Nxd4 {[%emt 0:00:03]} Nc6 {[%emt 0:01:03]} 5. Nc3 {[%emt 0:00:19]} d6 {[%emt 0:01:59]} 6. Be2 {[%emt 0:01:42]} Nf6 {[%emt 0:02:26]} 7. O-O {[%emt 0:00:35]} Be7 {[%emt 0:00:50]} 8. Be3 {[%emt 0:03:26]} a6 {[%emt 0:00:57]} 9. f4 {[%emt 0:01:56]} Qc7 {[%emt 0:08:36]} 10. Qe1 {[%emt 0:10:48]} O-O {[%emt 0:07:45]} 11. Kh1 {[%emt 0:08:22]} Bd7 {[%emt 0:05:48]} 12. Qg3 {[%emt 0:09:41]} Nxd4 {[%emt 0:09:16]} 13. Bxd4 {[%emt 0:01:17]} Bc6 {[%emt 0:00:09]} 14. Bd3 {[%emt 0:03:42]} g6 {[%emt 0:04:39]} 15. f5 {[%emt 0:02:38]} e5 {[%emt 0:16:02]} 16. Be3 {[%emt 0:02:58]} b5 {[%emt 0:01:56]} 17. Bh6 {[%emt 0:15:26]} Rfe8 {[%emt 0:01:03]} 18. a3 {[%emt 0:01:36]} Rac8 {[%emt 0:06:07]} 19. Rae1 {[%emt 0:02:22]} Qd8 {[%emt 0:05:46]} 20. Re3 {[%emt 0:09:26]} Nh5 {[%emt 0:04:56]} 21. Qg4 {[%emt 0:00:49]} Nf6 {[%emt 0:08:49]} 22. Qh3 {[%emt 0:02:34]} d5 {[%emt 0:03:15]} 23. fxg6 {[%emt 0:05:33]} hxg6 {[%emt 0:00:19]} 24. Ref3 {[%emt 0:03:52]} Bd7 {[%emt 0:01:53]} 25. Qg3 {[%emt 0:00:44]} Rxc3 26. bxc3 {[%emt 0:05:21]} dxe4 {[%emt 0:00:42]} 27. Rxf6 {[%emt 0:00:42]} Bxf6 {[%emt 0:00:05]} 28. Bxe4 {[%emt 0:00:15]} Bg7 {[%emt 0:01:05]} 29. Rxf7 {[%emt 0:01:32]} Re7 {[%emt 0:04:45]} 30. Rxe7 {[%emt 0:01:24]} Qxe7 {[%emt 0:00:05]} 31. Qxg6 {[%emt 0:00:21]} Qf6 {[%emt 0:02:57]} 32. Bd5+ {[%emt 0:01:21]} Kh8 {[%emt 0:00:01]} 33. Bxg7+ {[%emt 0:00:38]} Qxg7 {[%emt 0:00:00]} 34. Qh5+ {[%emt 0:00:33]} Qh7 {[%emt 0:00:01]} 35. Qxe5+ {[%emt 0:00:40]} Qg7 {[%emt 0:00:01]} 36. Qb8+ {[%emt 0:02:04]} Kh7 {[%emt 0:00:12]} 37. Be4+ {[%emt 0:00:23]} Kh6 {[%emt 0:00:18]} 38. Qd6+ {[%emt 0:00:29]} Kg5 {[%emt 0:00:22]} 39. Qg3+ {[%emt 0:00:48]} Kf6 {[%emt 0:00:29]} 40. Qd6+ {[%emt 0:00:00]} Kg5 {[%emt 0:00:00]} 41. Qg3+ {[%emt 0:03:26]} Kf6 {[%emt 0:00:22]} 42. Qxg7+ {[%emt 0:00:16]} Kxg7 {[%emt 0:00:01]} 43. Kg1 {[%emt 0:00:17]} Kf6 {[%emt 0:00:08]} 44. Kf2 {[%emt 0:03:33]} Ke5 {[%emt 0:00:05]} 45. Ke3 {[%emt 0:00:19]} a5 {[%emt 0:00:14]} 46. Bd3 {[%emt 0:02:37]} 1-0